Workbook

Sheet OUTPUT
A2: M&I 2025 Sch A-9 F.Z27.xlsm
A3: 11/29/2024
A4: CENTRAL VALLEY PROJECT
A5: SCHEDULE OF ESTIMATED M&I OPERATION & MAINTENANCE COSTS
A6: BY FACILITY AND/OR COMPONENT
A7: 2025 M&I WATER RATES
A9: Category | B9: A) Facility/Contractor Ref | C9: Related Footnotes | D9: B) Estimated O&M & Corps Expense | E9: C) Estimated Project Use Energy Cost <A-11> | F9: D) Total Estimated Costs (B+C)
A10: Storage | B10: American River | C10: - | D10: 16830 | E10: 0 | F10: 16830
A11: Storage | B11: Black Butte Reservoir | C11: - | D11: 404382.6833 | E11: 0 | F11: 404382.6833
A12: Storage | B12: Clair A. Hill Whiskeytown Dam | C12: - | D12: 36828 | E12: 0 | F12: 36828
A13: Storage | B13: Clear Creek Tunnel | C13: - | D13: 14632 | E13: 0 | F13: 14632
A14: Storage | B14: Columbia-Mowry System | C14: - | D14: 40108 | E14: 3780.944718 | F14: 43888.94472
A15: Storage | B15: Coleman National Fish Hatchery | C15: - | D15: 0 | E15: 0 | F15: 0
A16: Storage | B16: Delta Cross Channel | C16: - | D16: 18410 | E16: 0 | F16: 18410
A17: Storage | B17: Folsom D&R | C17: - | D17: 191250 | E17: 0 | F17: 191250
A18: Storage | B18: Folsom Pipeline | C18: - | D18: 0 | E18: 0 | F18: 0
A19: Storage | B19: Folsom PP | C19: - | D19: 118350 | E19: 187324.1565 | F19: 305674.1565
A20: Storage | B20: Friant D&R | C20: - | D20: 321077 | E20: 15227.7008 | F20: 336304.7008
A21: Storage | B21: Gianelli, WR PGP | C21: 2/ | D21: 0 | E21: 848293.1877 | F21: 848293.1877
A22: Storage | B22: Gianelli, WR PGP, Regeneration Credit | C22: 2/ | D22: 0 | E22: -552455.6229 | F22: -552455.6229
A23: Storage | B23: New Melones D&R | C23: - | D23: 15545 | E23: 0 | F23: 15545
A24: Storage | B24: New Melones Long Term Operating Plan | C24: - | D24: 4590 | E24: 0 | F24: 4590
A25: Storage | B25: Nimbus D&R | C25: - | D25: 21680 | E25: 0 | F25: 21680
A26: Storage | B26: Red Bluff Diversion Dam | C26: - | D26: 0 | E26: 0 | F26: 0
A27: Storage | B27: San Joaquin River | C27: - | D27: 15852 | E27: 0 | F27: 15852
A28: Storage | B28: Sacramento River | C28: - | D28: 15318 | E28: 0 | F28: 15318
A29: Storage | B29: Security Costs | C29: - | D29: 436249 | E29: 0 | F29: 436249
A30: Storage | B30: San Luis Unit - Other Routine O&M Costs - Joint. | C30: - | D30: 3014956 | E30: 0 | F30: 3014956
A31: Storage | B31: Shasta Dam and Reservoir | C31: - | D31: 281948 | E31: 72338.0302 | F31: 354286.0302
A32: Storage | B32: Spring Creek Debris Dam | C32: - | D32: 25854 | E32: 0 | F32: 25854
A33: Storage | B33: Trinity Dam and Clair Engle Lake | C33: - | D33: 39964 | E33: 0 | F33: 39964
A34: Storage | B34: Water Forum - American River Division | C34: - | D34: 3060 | E34: 0 | F34: 3060
A35: Total Storage | B35: Total Storage including PUE Offset | C35: 2/ 3/ | D35: 5036883.683 | E35: 574508.397 | F35: 5611392.08
A36: - | B36: Storage PUE Credit | C36: 3/ | D36: 0 | E36: -574508.397 | F36: -574508.397
A37: Conveyance | B37: Delta Barriers - Unfunded | C37: - | D37: 0 | E37: 0 | F37: 0
A38: Conveyance | B38: DMC Regulatory Actions | C38: - | D38: 28288 | E38: 0 | F38: 28288
A39: Conveyance | B39: Hydrologic Operating Modeling - Delta Division | C39: - | D39: 0 | E39: 0 | F39: 0
A40: Conveyance | B40: DMC Subsidence Study | C40: - | D40: 0 | E40: 0 | F40: 0
A41: Conveyance | B41: Friant-Kern Canal | C41: - | D41: 548 | E41: 0 | F41: 548
A42: Conveyance | B42: Arroyo Pasajero | C42: - | D42: 0 | E42: 0 | F42: 0
A43: Conveyance | B43: Los Banos Creek Detention Dam - Oper. Joint | C43: - | D43: 0 | E43: 0 | F43: 0
A44: Conveyance | B44: Red Bluff Diversion Dam | C44: - | D44: 0 | E44: 0 | F44: 0
A45: Conveyance | B45: Tehama-Colusa Canal | C45: - | D45: 2484 | E45: 0 | F45: 2484
A46: Conveyance | B46: San Luis Canal - Federal Only | C46: - | D46: 0 | E46: 0 | F46: 0
A47: Conveyance | B47: Drainage Projects | C47: - | D47: 0 | E47: 0 | F47: 0
A48: Conveyance | B48: Folsom-South Canal (Water Ratesetting) | C48: - | D48: 98400 | E48: 0 | F48: 98400
A49: Conveyance | B49: Sacramento River Water Metering System | D49: 0 | F49: 0
A50: Total Conveyance | B50: Total Conveyance | C50: - | D50: 129720 | E50: 0 | F50: 129720
A51: - | B51: Less Direct Billed | C51: - | D51: -31320 | E51: 0 | F51: -31320
A52: - | B52: Net Conveyance | C52: - | D52: 98400 | E52: 0 | F52: 98400
A53: Conveyance Pumping | B53: Dos Amigos Pumping Plant | C53: - | D53: 0 | E53: 77688.68973 | F53: 77688.68973
A54: Conveyance Pumping | B54: O'Neill Pump Gen Plant - Federal | C54: - | D54: 0 | E54: 417886.1997 | F54: 417886.1997
A55: Conveyance Pumping | B55: Jones Pumping Plant | C55: - | D55: 0 | E55: 2113166.581 | F55: 2113166.581
A56: Conveyance Pumping | B56: Jones Switchyard | C56: - | D56: 0 | E56: 0 | F56: 0
A57: Total Conveyance Pumping | B57: Total Conv. Pumping (Direct Billed) | C57: - | D57: 0 | E57: 2608741.471 | F57: 2608741.471
A58: - | B58: Less Direct Billed | C58: - | D58: 0 | E58: -2608741.471 | F58: -2608741.471
A59: - | B59: Net Conveyance Pumping | C59: - | D59: 0 | E59: 0 | F59: 0
A60: Direct Pumping | B60: Colusa County WD | C60: - | D60: 0 | E60: 2140.168138 | F60: 2140.168138
A61: Direct Pumping | B61: Contra Costa PP (Contra Costa WD) | C61: - | D61: 0 | E61: 2635697.809 | F61: 2635697.809
A62: Direct Pumping | B62: Kanawha WD | C62: - | D62: 0 | E62: 77.22398473 | F62: 77.22398473
A63: Direct Pumping | B63: Pleasant Valley PP (City of Coalinga) | C63: - | D63: 0 | E63: 174434.9838 | F63: 174434.9838
A64: Direct Pumping | B64: San Benito County WD, Gianelli, WR PGP | C64: 1/ | D64: 0 | E64: 22470.39 | F64: 22470.39
A65: Direct Pumping | B65: San Benito County WD, Pacheco PP | C65: 1/ | D65: 0 | E65: 65972.64 | F65: 65972.64
A66: Direct Pumping | B66: San Luis WD Relifts | C66: - | D66: 0 | E66: 12781.14907 | F66: 12781.14907
A67: Direct Pumping | B67: Santa Clara Valley WD, Coyote PP | C67: 1/ | D67: 0 | E67: 205757.9301 | F67: 205757.9301
A68: Direct Pumping | B68: Santa Clara Valley WD, Gianelli, WR PGP | C68: 1/ | D68: 0 | E68: 315536.94 | F68: 315536.94
A69: Direct Pumping | B69: Santa Clara Valley WD, Pacheco PP | C69: 1/ | D69: 0 | E69: 926410.5 | F69: 926410.5
A70: Direct Pumping | B70: Shasta PP (City of Shasta Lake) | C70: - | D70: 0 | E70: 15309.1437 | F70: 15309.1437
A71: Direct Pumping | B71: State-Delta PP (Cross Valley Canal) | C71: - | D71: 0 | E71: 764.9461747 | F71: 764.9461747
A72: Direct Pumping | B72: Westlands WD Relifts | C72: - | D72: 0 | E72: 23340.03364 | F72: 23340.03364
A73: Direct Pumping | B73: Wintu PP (Bella Vista WD) | C73: - | D73: 0 | E73: 88581.758 | F73: 88581.758
A74: Direct Pumping | B74: Dos Amigos PP (Cross Valley Canal) | C74: - | D74: 0 | E74: 1785.925793 | F74: 1785.925793
A75: Total Direct Pumping | B75: Total Direct Pumping | C75: - | D75: 0 | E75: 4491061.542 | F75: 4491061.542
A76: - | B76: Direct Pumping to WAPA (Specific Users) | C76: - | D76: 0 | E76: -4210184.785 | F76: -4210184.785
A77: - | B77: Direct Pumping Credit/to WAPA | C77: 3/ | D77: 0 | E77: -280876.7575 | F77: -280876.7575
A78: - | B78: Direct Pumping in Ratesetting | C78: - | D78: 0 | E78: -0.0009944537305 | F78: -0.0009944537305
A79: Sub Total | B79: Sub Total | C79: - | D79: 5135283.683 | E79: -0.0009944537305 | F79: 5135283.682
A80: Non-Recurring O&M: Storage | B80: Gianelli Pump/Gen Plant - San Felipe Unit | C80: 4/ | D80: 0 | E80: 0 | F80: 0
A81: Non-Recurring O&M: Storage | B81: Gianelli Pump/Gen Plant - All Other Contractors | C81: 4/ | D81: 0 | E81: 0 | F81: 0
A82: Non-Recurring O&M: Storage | B82: All Other Storage | C82: 4/ | D82: 0 | E82: 0 | F82: 0
A83: Total Non-Recurring Storage | B83: Total Non-Recurring Storage | C83: - | D83: 0 | E83: 0 | F83: 0
A84: Non-Recurring O&M: Conveyance | C84: 4/ | D84: 0 | E84: 0 | F84: 0
A85: Non-Recurring O&M: Conveyance | B85: Less Direct Billed | C85: 4/ | D85: 0 | E85: 0 | F85: 0
A86: Non-Recurring O&M: Conveyance | B86: Net Conveyance Pumping | C86: 4/ | D86: 0 | E86: 0 | F86: 0
A87: Non-Recurring O&M: Conveyance Pumping - Dos Amigos | C87: 4/ | D87: 0 | E87: 0 | F87: 0
A88: Non-Recurring O&M: Conveyance Pumping - Dos Amigos | B88: Less Direct Billed | C88: 4/ | D88: 0 | E88: 0 | F88: 0
A89: Non-Recurring O&M: Conveyance Pumping - Dos Amigos | B89: Net Conveyance Pumping | C89: 4/ | D89: 0 | E89: 0 | F89: 0
A90: Non-Recurring O&M: Conveyance Pumping - Dos Amigos, Direct Pumping | B90: Direct Pumping | C90: 4/ | D90: 0 | E90: 0 | F90: 0
A91: Total | B91: Total Non-Recurring O&M | C91: 4/ | D91: 0 | E91: 0 | F91: 0
A92: Water Marketing Expense | B92: Suisun Marsh Protection | C92: - | D92: 0 | E92: 0 | F92: 0
A93: Water Marketing Expense | B93: Water Contract Administration | C93: - | D93: 1151668 | E93: 0 | F93: 1151668
A94: Water Marketing Expense | B94: Water & Power Systems Control | C94: - | D94: 889071 | E94: 0 | F94: 889071
A95: Water Marketing Expense | B95: Other Expenses | C95: - | D95: 1166619 | E95: 0 | F95: 1166619
A96: Water Marketing Expense | B96: Hazardous Materials Management Program | C96: - | D96: 68842 | E96: 0 | F96: 68842
A97: Water Marketing Expense | B97: General Expense | C97: - | D97: 29747 | E97: 0 | F97: 29747
A98: Water Marketing Expense | B98: Coleman National Fish Hatchery | C98: - | D98: 0 | E98: 0 | F98: 0
A99: Water Marketing Expense | B99: Water Wheeling | C99: - | D99: 62989 | E99: 0 | F99: 62989
A100: Water Marketing Expense | B100: Trinity PUD Assessment | C100: - | D100: 44493.2445 | E100: 0 | F100: 44493.2445
A101: Total | B101: Total Water Marketing | C101: - | D101: 3413429.245 | E101: 0 | F101: 3413429.245
A102: Grand Total | B102: Grand Total | C102: - | D102: 8548712.928 | E102: -0.0009944537305 | F102: 8548712.927
A104: FOOTNOTES (continued)
A106: RECONCILIATION:
B108: Adjustments to MP-3400 Data (Table 6)
E109: MP-3400
E110: Data
E111: (Table 6)
B114: Water Marketing & Other Expenses | E114: =2029857+156832 -> 2186689
B115: Storage | E115: =3818662-#REF! -> 
B116: Conveyance | E116: 454585
B117: Conveyance Pumping | E117: 213907
B118: Direct Pumping | E118: N/A
C119: Total | E119: =SUM(E114:E118) -> 
E120: =-L119+SUM(E119:J119) -> 
B123: a/ | C123: Refer to footnote 2/ above for details.
B125: b/ | C125: Non-Permanent Contractor Revenue
C126: General Expense Adjustment
C127: Total
B129: c/ | C129: Security Costs
B132: d/ | C132: American Recovery and Reinvestment Act

Sheet Footnotes
A1: =+[11]INFORMATION!A1 -> M&I 2025 Sch A-9 F.Z27.xlsm
A2: =+[11]INFORMATION!A2 -> 11/29/2024
A3: =+[11]INFORMATION!A3 -> CENTRAL VALLEY PROJECT
A4: =+[11]INFORMATION!A4 -> SCHEDULE OF ESTIMATED M&I OPERATION & MAINTENANCE COSTS
A5: =+[11]INFORMATION!A5 -> BY FACILITY AND/OR COMPONENT
A6: =+[11]INFORMATION!A6 -> 2025 M&I WATER RATES
A8: Footnotes:
A10: 1/
A11: Suballocation of San Felipe Unit Direct Pumping Costs:
A13: Facility / Contractor / Component | B13: Projected FY2025 Deliveries <Sch A-12> | C13: Ratios | D13: Direct Pumping Allocation (Sch A-11): William R. Gianelli Pump-Generator Plant PUE | E13: Direct Pumping Allocation (Sch A-11): Pacheco PP | F13: Direct Pumping Allocation (Sch A-11): Coyote PP | G13: Direct Pumping Allocation (Sch A-11): Grand Total
A14: San Benito County WD | B14: 6512.571429 | C14: 0.066479 | D14: 22470.39 | E14: 65972.64 | F14: 0 | G14: 88443.03
A15: Santa Clara Valley WD | B15: 91451.14286 | C15: 0.933521 | D15: 315536.94 | E15: 926410.5 | F15: 205757.9301 | G15: 1447705.37
A16: Total | B16: 97963.71429 | C16: 1 | D16: 338007.33 | E16: 992383.14 | F16: 205757.9301 | G16: 1536148.4
A17: Total San Felipe | B17: 97963.71429 | C17: 0.284926 | D17: - | E17: - | F17: - | G17: -
A18: All Other Contractors | B18: 245858.4286 | C18: 0.715074 | D18: - | E18: - | F18: - | G18: -
A19: Total Storage | B19: 343822.1429 | C19: 1 | D19: - | E19: - | F19: - | G19: -
A21: 2/
A22: Storage Costs are broken down between San Felipe Unit Contractors and all others as follows:
A24: Facility / Contractor / Component | B24: San Felipe Unit Storage | C24: All Other Contractors Storage | D24: Total
A25: Projected 2025 Storage Deliveries | B25: 97963.71429 | C25: 245858.4286 | D25: 343822.1429
A26: Ratios | B26: 0.284926 | C26: 0.715074 | D26: 1
A27: Allocated Gianelli, WR Pump Generator Costs - Routine: Project Use Costs | B27: * | C27: 848293.1877 | D27: 848293.1877
A28: Allocated Gianelli, WR Pump Generator Costs - Routine: Regeneration Credit | B28: 0 | C28: -552455.6229 | D28: -552455.6229
A29: Allocated Storage O&M Costs | B29: 1514540 | C29: 3801014.83 | D29: 5315554.83
A30: Allocated Storage O&M Costs - Non-Recurring O&M | B30: 0 | C30: 0 | D30: 0
A31: Allocated Gianelli, WR Pump Generator Costs- XM: Gianelli (includes PUE) | B31: - | C31: 0 | D31: 0
A32: Total | B32: 1514540 | C32: 4096852.394 | D32: 5611392.394
A33: Cost per Acre-foot (to Schedule A-8) | B33: 15.46 | C33: 16.66 | D33: -
A35: *San Felipe Unit contractors' share of the William R. Gianelli PG PUE has been included in the direct pumping section (see Schedule A-11, page 2)
A37: 3/
A38: Project Use Energy payment is being remitted to Western Area Power Authority for storage and direct pumping based on the deliveries of a select few contractors.
A39: The rates for the select few contractors are reduced as a credit in the O&M rates. All contractors will ultimately pay for the storage and direct pumping service
A40: but as an offset to the amount paid by the select few. Refer to schedule A-11 for calculation details.
A42: 4/
A43: Non-Recurring O&M costs are recovered under the new approved negotiation directive.

Sheet Table 6 revised (hidden)
A1: Table 6. Allocated Operation and Maintenance Costs, Fiscal Year 2023 | E1: only the rows highlighted in green were revised
A11: Table 6. Allocated Operation and Maintenance Costs, Fiscal Year 2023 | P11: Sheet 1 of 11
A12: Central Valley Project
A13: California
P15: Non-
D16: Budget Year | E16: Increase | F16: Budget Year | I16: Fish and | L16: Flood | N16: Water Quality | O16: State of | P16: Reimbursable | Q16: Row Sum
A17: Component and Feature | B17: Division or Unit | D17: 2022 | E17: (Decrease) | F17: 2023 | G17: M&I Water | H17: Irrigation | I17: Wildlife | J17: Recreation | K17: Power | L17: Control | M17: Navigation | N17: Improvement | O17: California | P17: Program | Q17: Check
A19: STORAGE O&M
A21: American River Operations Support | B21: American River Division | D21: 282000 | E21: =F21-D21 -> -7000 | F21: 275000 | G21: 16473 | H21: =F21-G21-SUM(I21:P21) -> 84148 | I21: 1953 | J21: 0 | K21: 29068 | L21: 111760 | M21: 0 | N21: 31598 | O21: 0 | P21: 0 | Q21: =F21-SUM(G21:P21) -> 0
A22: Clair A. Hill Whiskeytown Dam | B22: Trinity River Division | D22: 396000 | E22: 118000 | F22: 514000 | G22: 31200 | H22: 158414 | I22: 3135 | J22: 0 | K22: 53302 | L22: 208890 | M22: 0 | N22: 59059 | O22: 0 | P22: 0 | Q22: 0
A23: Clear Creek Tunnel | B23: Trinity River Division | D23: 125000 | E23: 0 | F23: 125000 | G23: 7588 | H23: 38523 | I23: 763 | J23: 0 | K23: 12963 | L23: 50800 | M23: 0 | N23: 14363 | O23: 0 | P23: 0 | Q23: 0
A24: Columbia-Mowry System | B24: Friant Division | D24: 302000 | E24: 0 | F24: 302000 | G24: 37267 | H24: 240755 | I24: 9966 | J24: 0 | K24: 12593 | L24: 0 | M24: 0 | N24: 0 | O24: 1419 | P24: 0 | Q24: 0
A25: Contra Loma Dam | B25: Delta Division | D25: 0 | E25: 0 | F25: 0 | G25: 0 | H25: 0 | I25: 0 | J25: 0 | K25: 0 | L25: 0 | M25: 0 | N25: 0 | O25: 0 | P25: 0 | Q25: 0
A26: Delta Cross Channel | B26: Delta Division | D26: 180000 | E26: 0 | F26: 180000 | G26: 22212 | H26: 143496 | I26: 5940 | J26: 0 | K26: 7506 | L26: 0 | M26: 0 | N26: 0 | O26: 846 | P26: 0 | Q26: 0
A27: Folsom Dam and Reservoir | B27: American River Division | D27: 3518000 | E27: -443000 | F27: 3075000 | G27: 184193 | H27: 940948 | I27: 21833 | J27: 0 | K27: 325028 | L27: 1249680 | M27: 0 | N27: 353318 | O27: 0 | P27: 0 | Q27: 0
A28: Water Forum | B28: American River Division | D28: 60000 | E28: -10000 | F28: 50000 | G28: 2995 | H28: 15300 | I28: 355 | J28: 0 | K28: 5285 | L28: 20320 | M28: 0 | N28: 5745 | O28: 0 | P28: 0 | Q28: 0
A29: Folsom Pumping Plant | B29: American River Division | D29: 800000 | E29: 0 | F29: 800000 | G29: 98720 | H29: 637760 | I29: 26400 | J29: 0 | K29: 33360 | L29: 0 | M29: 0 | N29: 0 | O29: 3760 | P29: 0 | Q29: 0
A30: Friant Dam and Reservoir | B30: Friant Division | D30: 3224000 | E30: 22000 | F30: 3246000 | G30: 297658 | H30: 1511988 | I30: 29863 | J30: 0 | K30: 61349 | L30: 1345142 | M30: 0 | N30: 0 | O30: 0 | P30: 0 | Q30: 0
A31: New Melones Dam and Reservoir | B31: East Side Division | D31: 156000 | E31: 0 | F31: 156000 | G31: 9344 | H31: 47737 | I31: 1108 | J31: 0 | K31: 16489 | L31: 63398 | M31: 0 | N31: 17924 | O31: 0 | P31: 0 | Q31: 0
A32: Nimbus Dam and Reservoir | B32: American River Division | D32: 456000 | E32: 1000 | F32: 457000 | G32: 24221 | H32: 123024 | I32: 2422 | J32: 0 | K32: 99169 | L32: 162281 | M32: 0 | N32: 45883 | O32: 0 | P32: 0 | Q32: 0
A33: No Hands Bridge | B33: American River Division | D33: 0 | E33: 0 | F33: 0 | G33: 0 | H33: 0 | I33: 0 | J33: 0 | K33: 0 | L33: 0 | M33: 0 | N33: 0 | O33: 0 | P33: 0 | Q33: 0
A34: PCWA Pumps | B34: American River Division | D34: 0 | E34: 0 | F34: 0 | G34: 0 | H34: 0 | I34: 0 | J34: 0 | K34: 0 | L34: 0 | M34: 0 | N34: 0 | O34: 0 | P34: 0 | Q34: 0
A35: Sacramento River | B35: Sacramento River Division | D35: 593000 | E35: 39000 | F35: 632000 | G35: 10365 | H35: 478613 | I35: 59534 | J35: 0 | K35: 75082 | L35: 0 | M35: 0 | N35: 0 | O35: 8406 | P35: 0 | Q35: 0
A36: San Joaquin River | B36: Friant Division | D36: 125000 | E36: 0 | F36: 125000 | G36: 11463 | H36: 58224 | I36: 1150 | J36: 0 | K36: 2363 | L36: 51800 | M36: 0 | N36: 0 | O36: 0 | P36: 0 | Q36: 0
A37: San Luis Dam and Reservoir - Oper. - Joint | B37: San Luis Unit | D37: 0 | E37: 0 | F37: 0 | G37: 0 | H37: 0 | I37: 0 | J37: 0 | K37: 0 | L37: 0 | M37: 0 | N37: 0 | O37: 0 | P37: 0 | Q37: 0
A38: San Luis Dam and Reservoir - Maint. - Joint | B38: San Luis Unit | D38: 0 | E38: 0 | F38: 0 | G38: 0 | H38: 0 | I38: 0 | J38: 0 | K38: 0 | L38: 0 | M38: 0 | N38: 0 | O38: 0 | P38: 0 | Q38: 0
A39: San Luis Joint Use - Extraordinary Main. Items | B39: San Luis Unit | D39: 0 | E39: 0 | F39: 0 | G39: 0 | H39: 0 | I39: 0 | J39: 0 | K39: 0 | L39: 0 | M39: 0 | N39: 0 | O39: 0 | P39: 0 | Q39: 0
A40: San Luis Unit - Other Routine O&M Costs - Joint | B40: San Luis Unit | D40: 6900000 | E40: 2258000 | F40: 9158000 | G40: 2882938 | H40: 6079081 | I40: 81506 | J40: 0 | K40: 102570 | L40: 0 | M40: 0 | N40: 0 | O40: 11905 | P40: 0 | Q40: 0
A41: San Luis Unit - Reduce Payment to State - Joint | B41: San Luis Unit | D41: 0 | E41: 0 | F41: 0 | G41: 0 | H41: 0 | I41: 0 | J41: 0 | K41: 0 | L41: 0 | M41: 0 | N41: 0 | O41: 0 | P41: 0 | Q41: 0
A42: San Luis Dam and Reservoir - Federal Only | B42: San Luis Unit | D42: 0 | E42: 0 | F42: 0 | G42: 0 | H42: 0 | I42: 0 | J42: 0 | K42: 0 | L42: 0 | M42: 0 | N42: 0 | O42: 0 | P42: 0 | Q42: 0
A43: San Luis Pumping-Gen. Plant - Oper. - Joint | B43: San Luis Unit | D43: 0 | E43: 0 | F43: 0 | G43: 0 | H43: 0 | I43: 0 | J43: 0 | K43: 0 | L43: 0 | M43: 0 | N43: 0 | O43: 0 | P43: 0 | Q43: 0
A44: San Luis Pumping-Gen. Plant - Maint. - Joint | B44: San Luis Unit | D44: 0 | E44: 0 | F44: 0 | G44: 0 | H44: 0 | I44: 0 | J44: 0 | K44: 0 | L44: 0 | M44: 0 | N44: 0 | O44: 0 | P44: 0 | Q44: 0
A45: San Luis Switchyard - Operation - Joint | B45: San Luis Unit | D45: 0 | E45: 0 | F45: 0 | G45: 0 | H45: 0 | I45: 0 | J45: 0 | K45: 0 | L45: 0 | M45: 0 | N45: 0 | O45: 0 | P45: 0 | Q45: 0
A46: San Luis Switchyard - Maintenance - Joint | B46: San Luis Unit | D46: 0 | E46: 0 | F46: 0 | G46: 0 | H46: 0 | I46: 0 | J46: 0 | K46: 0 | L46: 0 | M46: 0 | N46: 0 | O46: 0 | P46: 0 | Q46: 0
A47: Shasta Dam and Reservoir | B47: Shasta Division | D47: 4252000 | E47: 1553000 | F47: 5805000 | G47: 347720 | H47: 1776328 | I47: 41216 | J47: 0 | K47: 613589 | L47: 2359152 | M47: 0 | N47: 666995 | O47: 0 | P47: 0 | Q47: 0
A48: Spring Creek Tunnel | B48: Trinity River Division | D48: 75000 | E48: -5000 | F48: 70000 | G48: 0 | H48: 0 | I48: 0 | J48: 0 | K48: 70000 | L48: 0 | M48: 0 | N48: 0 | O48: 0 | P48: 0 | Q48: 0
A49: Spring Creek Debris Dam | B49: Trinity River Division | D49: 577000 | E49: =F49-D49 -> -217000 | F49: 360000 | G49: 21852 | H49: =F49-G49-SUM(I49:P49) -> 110952 | I49: 2196 | J49: 0 | K49: 37332 | L49: 146304 | M49: 0 | N49: 41364 | O49: 0 | P49: 0 | Q49: =F49-SUM(G49:P49) -> 0
A50: Stanislaus River Temp Management | B50: East Side Division | D50: 0 | E50: 0 | F50: 0 | G50: 0 | H50: 0 | I50: 0 | J50: 0 | K50: 0 | L50: 0 | M50: 0 | N50: 0 | O50: 0 | P50: 0 | Q50: 0
A51: New Melones Long Term Operating Plan | B51: East Side Division | D51: 346000 | E51: -271000 | F51: 75000 | G51: 4493 | H51: 22948 | I51: 533 | J51: 0 | K51: 7928 | L51: 30480 | M51: 0 | N51: 8618 | O51: 0 | P51: 0 | Q51: 0
A52: TCD Feasibility Study | B52: East Side Division | D52: 0 | E52: 0 | F52: 0 | G52: 0 | H52: 0 | I52: 0 | J52: 0 | K52: 0 | L52: 0 | M52: 0 | N52: 0 | O52: 0 | P52: 0 | Q52: 0
A53: Trinity Dam and Clair Engle Lake | B53: Trinity River Division | D53: 522000 | E53: 1555000 | F53: 2077000 | G53: 124412 | H53: 635562 | I53: 14747 | J53: 0 | K53: 219539 | L53: 844093 | M53: 0 | N53: 238647 | O53: 0 | P53: 0 | Q53: 0
A54: Storage O&M | D54: 22312000 | E54: =SUM(E21:E53) -> 4593000 | F54: =SUM(F21:F53) -> 27482000 | G54: 4135114 | H54: 13103801 | I54: 304620 | J54: 0 | K54: 1784515 | L54: 6644100 | M54: 0 | N54: 1483514 | O54: 26336 | P54: 0 | Q54: 0
A56: New Melones Resource Complex - Life Safety | B56: East Side Division | D56: 20000 | E56: =F56-D56 -> -20000 | F56: 0 | G56: 0 | H56: =F56-G56-SUM(I56:P56) -> 0 | I56: 0 | J56: 0 | K56: 0 | L56: 0 | M56: 0 | N56: 0 | O56: 0 | P56: 0 | Q56: =F56-SUM(G56:P56) -> 0
A57: New Melones ADA Guidelines | B57: East Side Division | D57: 0 | E57: 0 | F57: 0 | G57: 0 | H57: 0 | I57: 0 | J57: 0 | K57: 0 | L57: 0 | M57: 0 | N57: 0 | O57: 0 | P57: 0 | Q57: 0
A58: New Melones Safety Barriers and Boundary ID | B58: East Side Division | D58: 0 | E58: 0 | F58: 0 | G58: 0 | H58: 0 | I58: 0 | J58: 0 | K58: 0 | L58: 0 | M58: 0 | N58: 0 | O58: 0 | P58: 0 | Q58: 0
A59: Hydrilla Detection and Eradication | B59: San Luis Unit | D59: 12000 | E59: 0 | F59: 12000 | G59: 0 | H59: 0 | I59: 0 | J59: 0 | K59: 0 | L59: 0 | M59: 0 | N59: 0 | O59: 0 | P59: 12000 | Q59: =F59-SUM(G59:P59) -> 0
A60: San Luis Unit ADA Guidelines | B60: San Luis Unit | D60: 3000 | E60: 0 | F60: 3000 | G60: 0 | H60: 0 | I60: 0 | J60: 0 | K60: 0 | L60: 0 | M60: 0 | N60: 0 | O60: 0 | P60: 3000 | Q60: 0
A61: San Felipe - ADA Guidelines | B61: San Felipe Unit | D61: 3000 | E61: 0 | F61: 3000 | G61: 0 | H61: 0 | I61: 0 | J61: 0 | K61: 0 | L61: 0 | M61: 0 | N61: 0 | O61: 0 | P61: 3000 | Q61: 0
A62: Shasta Division ADA Guidelines | B62: Shasta Division | D62: 0 | E62: 0 | F62: 0 | G62: 0 | H62: 0 | I62: 0 | J62: 0 | K62: 0 | L62: 0 | M62: 0 | N62: 0 | O62: 0 | P62: 0 | Q62: 0
A63: Shasta Dam/Vista House/Quonset - Life Safety | B63: Shasta Division | D63: 0 | E63: 0 | F63: 0 | G63: 0 | H63: 0 | I63: 0 | J63: 0 | K63: 0 | L63: 0 | M63: 0 | N63: 0 | O63: 0 | P63: 0 | Q63: 0
A64: Trinity River - Life Safety | B64: Trinity River Division | D64: 0 | E64: 0 | F64: 0 | G64: 0 | H64: 0 | I64: 0 | J64: 0 | K64: 0 | L64: 0 | M64: 0 | N64: 0 | O64: 0 | P64: 0 | Q64: 0
A65: Life Safety Code Corrections | D65: 38000 | E65: =SUM(E56:E64) -> -20000 | F65: 18000 | G65: 0 | H65: 0 | I65: 0 | J65: 0 | K65: 0 | L65: 0 | M65: 0 | N65: 0 | O65: 0 | P65: 18000 | Q65: 0
A67: Folsom Public Safety, Protection of Land | B67: American River Division | D67: 3076000 | E67: =F67-D67 -> -116000 | F67: 2960000 | G67: 0 | H67: =F67-G67-SUM(I67:P67) -> 0 | I67: 0 | J67: 0 | K67: 0 | L67: 0 | M67: 0 | N67: 0 | O67: 0 | P67: 2960000 | Q67: =F67-SUM(G67:P67) -> 0
A68: Emergency Management | B68: Friant Division | D68: 13000 | E68: =F68-D68 -> 0 | F68: 13000 | G68: 0 | H68: =F68-G68-SUM(I68:P68) -> 0 | I68: 0 | J68: 0 | K68: 0 | L68: 0 | M68: 0 | N68: 0 | O68: 0 | P68: 13000 | Q68: =F68-SUM(G68:P68) -> 0
A69: Handicap Accessibility | B69: Friant Division | D69: 61000 | E69: =F69-D69 -> 0 | F69: 61000 | G69: 0 | H69: =F69-G69-SUM(I69:P69) -> 0 | I69: 0 | J69: 0 | K69: 0 | L69: 0 | M69: 0 | N69: 0 | O69: 0 | P69: 61000 | Q69: =F69-SUM(G69:P69) -> 0
A70: Public Access and Safety Program | D70: 3150000 | E70: =SUM(E67:E69) -> -116000 | F70: 3034000 | G70: 0 | H70: 0 | I70: 0 | J70: 0 | K70: 0 | L70: 0 | M70: 0 | N70: 0 | O70: 0 | P70: 3034000 | Q70: =F70-SUM(G70:P70) -> 0
A72: Bureau of Reclamation | D72: 25500000 | E72: =E54+E65+E70 -> 4457000 | F72: 30534000 | G72: 4135114 | H72: 13103801 | I72: 304620 | J72: 0 | K72: 1784515 | L72: 6644100 | M72: 0 | N72: 1483514 | O72: 26336 | P72: 3052000 | Q72: =F72-SUM(G72:P72) -> 0
A74: Black Butte Dam and Reservoir | B74: Corps of Engineers | D74: 2611762.349 | E74: =F74-D74 -> 91411.68223 | F74: 2703174.032 | G74: 156784 | H74: =F74-G74-SUM(I74:O74) -> 929892.0317 | I74: 0 | J74: 0 | K74: 0 | L74: 1616498 | M74: 0 | N74: 0 | O74: 0 | P74: 0 | Q74: =F74-SUM(G74:P74) -> 0
A75: Buchanan Dam and Eastman Lake | B75: Corps of Engineers | D75: 2227342.144 | E75: =F75-D75 -> 77956.97505 | F75: 2305299.119 | G75: 0 | H75: =F75-G75-SUM(I75:O75) -> 2305299.119 | I75: 0 | J75: 0 | K75: 0 | L75: 0 | M75: 0 | N75: 0 | O75: 0 | P75: 0 | Q75: =F75-SUM(G75:P75) -> 0
A76: Hidden Dam and Hensley Lake | B76: Corps of Engineers | D76: 2531435.739 | E76: =F76-D76 -> 88600.25088 | F76: 2620035.99 | G76: 0 | H76: =F76-G76-SUM(I76:O76) -> 2620035.99 | I76: 0 | J76: 0 | K76: 0 | L76: 0 | M76: 0 | N76: 0 | O76: 0 | P76: 0 | Q76: =F76-SUM(G76:P76) -> 0
A77: Corps of Engineers | D77: 7370540.233 | E77: =SUM(E74:E76) -> 257968.9082 | F77: 7628509.141 | G77: 156784 | H77: 5855227.141 | I77: 0 | J77: 0 | K77: 0 | L77: 1616498 | M77: 0 | N77: 0 | O77: 0 | P77: 0 | Q77: =F77-SUM(G77:P77) -> 0
A79: Total Storage O&M | D79: 32870540.23 | E79: =E72+E77 -> 4714968.908 | F79: =F72+F77 -> 38162509.14 | G79: 4291898 | H79: 18959028.14 | I79: 304620 | J79: 0 | K79: 1784515 | L79: 8260598 | M79: 0 | N79: 1483514 | O79: 26336 | P79: =P72+P77 -> 3052000 | Q79: =F79-SUM(G79:P79) -> 0
A80: Transfer to Fish and Wildlife O&M | D80: -265773 | E80: =E73+E78 -> 0 | F80: =I80 -> -304620 | I80: =-I79 -> -304620 | Q80: 0
A81: Transfer to Recreation O&M | D81: 0 | E81: 4806380.59 | F81: =J81 -> 0 | J81: =-J79 -> 0 | Q81: 0
A82: Transfer to Power O&M | D82: -1467566 | E82: 77956.97505 | F82: =K82 -> -1784515 | K82: =-K79 -> -1784515 | Q82: 0
A83: Transfer to Flood Control O&M | D83: -7036190 | E83: 4894980.841 | F83: =L83 -> -8260598 | L83: =-L79 -> -8260598 | Q83: 0
A84: Transfer to Navigation O&M | D84: 0 | E84: 335925.8832 | F84: =M84 -> 0 | M84: =-M79 -> 0 | Q84: 0
A85: Transfer to Water Quality Improvement O&M | D85: -1155371 | E85: 4894980.841 | F85: =N85 -> -1483514 | N85: =-N79 -> -1483514 | Q85: 0
A86: Transfer to State of California O&M | D86: -23178 | E86: 5050894.791 | F86: =O86 -> -26336 | O86: =-O79 -> -26336 | Q86: 0
A87: Transfer to Non-Reimbursable Bureau Prog. | D87: -3188000 | E87: 4894980.841 | F87: =P87 -> -3052000 | P87: =-P79 -> -3052000 | Q87: 0
A89: Storage O&M - M&I and Irrigation | D89: 19734462.23 | E89: 4972937.816 | F89: =SUM(F79:F87) -> 23250926.14 | G89: 4291898 | H89: 18959028.14 | I89: 0 | J89: 0 | K89: 0 | L89: 0 | M89: 0 | N89: 0 | O89: 0 | P89: 0 | Q89: =F89-SUM(G89:P89) -> 0
A93: Table 6. Allocated Operation and Maintenance Costs, Fiscal Year 2023 | P93: Sheet 2 of 11
A94: Central Valley Project
A95: California
P97: Non-
D98: Budget Year | E98: =E$16 -> Increase | F98: =F$16 -> Budget Year | I98: =I$16 -> Fish and | L98: =L$16 -> Flood | N98: =N$16 -> Water Quality | O98: =O$16 -> State of | P98: Reimbursable
A99: Component and Feature | B99: =B$17 -> Division or Unit | D99: 2021 | E99: =E$17 -> (Decrease) | F99: 2023 | G99: M&I Water | H99: Irrigation | I99: Wildlife | J99: Recreation | K99: Power | L99: Control | M99: Navigation | N99: Improvement | O99: California | P99: Program
A101: CONVEYANCE O&M
A103: Corning Canal | B103: Sacramento River Division | D103: 0 | E103: =F103-D103 -> 0 | F103: 0 | G103: 0 | H103: =F103-G103-SUM(I103:P103) -> 0 | I103: 0 | J103: 0 | K103: 0 | L103: 0 | M103: 0 | N103: 0 | O103: 0 | P103: 0 | Q103: =F103-SUM(G103:P103) -> 0
A104: South Delta Hydrodynamics Fish Inv | B104: Delta Division | D104: 0 | E104: 0 | F104: 0 | G104: 0 | H104: 0 | I104: 0 | J104: 0 | K104: 0 | L104: 0 | M104: 0 | N104: 0 | O104: 0 | P104: 0 | Q104: 0
A105: Hydrologic and Operational Modeling | B105: Delta Division | D105: 32000 | E105: =F105-D105 -> -32000 | F105: 0 | G105: 0 | H105: 0 | I105: 0 | J105: 0 | K105: 0 | L105: 0 | M105: 0 | N105: 0 | O105: 0 | P105: 0 | Q105: 0
A106: DMC Subsidence Study | B106: Delta Division | D106: 5000 | E106: =F106-D106 -> 0 | F106: 5000 | G106: 0 | H106: 0 | I106: 0 | J106: 0 | K106: 0 | L106: 0 | M106: 0 | N106: 0 | O106: 0 | P106: 5000 | Q106: 0
A107: DMC Subsidence XM | B107: Delta Division | D107: 0 | E107: =F107-D107 -> 0 | F107: 0 | G107: 0 | H107: 0 | I107: 0 | J107: 0 | K107: 0 | L107: 0 | M107: 0 | N107: 0 | O107: 0 | P107: 0 | Q107: 0
A108: DMC Regulatory Actions | B108: Delta Division | D108: 145000 | E108: =F108-D108 -> -55000 | F108: 90000 | G108: 4725 | H108: 45396 | I108: 16596 | J108: 0 | K108: 20934 | L108: 0 | M108: 0 | N108: 0 | O108: 2349 | P108: 0 | Q108: 0
A109: Contra Loma Dam | B109: Delta Division | D109: 0 | E109: =F109-D109 -> 0 | F109: 0 | G109: 0 | H109: 0 | I109: 0 | J109: 0 | K109: 0 | L109: 0 | M109: 0 | N109: 0 | O109: 0 | P109: 0 | Q109: 0
A110: Folsom South Canal | B110: American River Division | D110: 400000 | E110: 200000 | F110: 600000 | G110: 600000 | H110: 0 | I110: 0 | J110: 0 | K110: 0 | L110: 0 | M110: 0 | N110: 0 | O110: 0 | P110: 0 | Q110: 0
A111: Friant-Kern Canal | B111: Friant Division | D111: 40000 | E111: -31000 | F111: 9000 | G111: 643 | H111: 8357 | I111: 0 | J111: 0 | K111: 0 | L111: 0 | M111: 0 | N111: 0 | O111: 0 | P111: 0 | Q111: 0
A112: Funks Dam | B112: Sacramento River Division | D112: 0 | E112: 0 | F112: 0 | G112: 0 | H112: 0 | I112: 0 | J112: 0 | K112: 0 | L112: 0 | M112: 0 | N112: 0 | O112: 0 | P112: 0 | Q112: 0
A113: Little Panoche Cr. Detention Dam - Oper. - Joint | B113: San Luis Unit | D113: 0 | E113: 0 | F113: 0 | G113: 0 | H113: 0 | I113: 0 | J113: 0 | K113: 0 | L113: 0 | M113: 0 | N113: 0 | O113: 0 | P113: 0 | Q113: 0
A114: Little Panoche Cr. Detention Dam - Maint. - Joint | B114: San Luis Unit | D114: 0 | E114: 0 | F114: 0 | G114: 0 | H114: 0 | I114: 0 | J114: 0 | K114: 0 | L114: 0 | M114: 0 | N114: 0 | O114: 0 | P114: 0 | Q114: 0
A115: Arroyo Pasajero | B115: San Luis Unit | D115: 0 | E115: 5000 | F115: 5000 | G115: 108 | H115: 4892 | I115: 0 | J115: 0 | K115: 0 | L115: 0 | M115: 0 | N115: 0 | O115: 0 | P115: 0 | Q115: 0
A116: Los Banos Creek Detention Dam - Oper. - Joint | B116: San Luis Unit | D116: 0 | E116: 1000 | F116: 1000 | G116: 6 | H116: 234 | I116: 0 | J116: 73 | K116: 0 | L116: 687 | M116: 0 | N116: 0 | O116: 0 | P116: 0 | Q116: 0
A117: Los Banos Creek Detention Dam - Maint. - Joint | B117: San Luis Unit | D117: 25000 | E117: -25000 | F117: 0 | G117: 0 | H117: 0 | I117: 0 | J117: 0 | K117: 0 | L117: 0 | M117: 0 | N117: 0 | O117: 0 | P117: 0 | Q117: 0
A118: Madera Canal | B118: Friant Division | D118: 13000 | E118: -5000 | F118: 8000 | G118: 0 | H118: 8000 | I118: 0 | J118: 0 | K118: 0 | L118: 0 | M118: 0 | N118: 0 | O118: 0 | P118: 0 | Q118: 0
A119: Mendota Pool | B119: Friant Division | D119: 0 | E119: 0 | F119: 0 | G119: 0 | H119: 0 | I119: 0 | J119: 0 | K119: 0 | L119: 0 | M119: 0 | N119: 0 | O119: 0 | P119: 0 | Q119: 0
A120: O'Neill Dam and Reservoir - Oper. - Joint | B120: San Luis Unit | D120: 0 | E120: 0 | F120: 0 | G120: 0 | H120: 0 | I120: 0 | J120: 0 | K120: 0 | L120: 0 | M120: 0 | N120: 0 | O120: 0 | P120: 0 | Q120: 0
A121: O'Neill Dam and Reservoir - Maint. - Joint | B121: San Luis Unit | D121: 0 | E121: 0 | F121: 0 | G121: 0 | H121: 0 | I121: 0 | J121: 0 | K121: 0 | L121: 0 | M121: 0 | N121: 0 | O121: 0 | P121: 0 | Q121: 0
A122: Red Bluff Diversion Dam | B122: Sacramento River Division | D122: 0 | E122: 0 | F122: 0 | G122: 0 | H122: 0 | I122: 0 | J122: 0 | K122: 0 | L122: 0 | M122: 0 | N122: 0 | O122: 0 | P122: 0 | Q122: 0
A123: Life Safety Code Corrections | B123: Sacramento River Division | D123: 0 | E123: 0 | F123: 0 | G123: 0 | H123: 0 | I123: 0 | J123: 0 | K123: 0 | L123: 0 | M123: 0 | N123: 0 | O123: 0 | P123: 0 | Q123: 0
A124: ADA Guidelines | B124: Delta Division | D124: 11000 | E124: -6000 | F124: 5000 | G124: 0 | H124: 0 | I124: 0 | J124: 0 | K124: 0 | L124: 0 | M124: 0 | N124: 0 | O124: 0 | P124: 5000 | Q124: 0
A125: Emergency Management | B125: Delta Division | D125: 4000 | E125: 6000 | F125: 10000 | G125: 0 | H125: 0 | I125: 0 | J125: 0 | K125: 0 | L125: 0 | M125: 0 | N125: 0 | O125: 0 | P125: 10000 | Q125: 0
A126: San Luis Canal - Operation - Joint | B126: San Luis Unit | D126: 0 | E126: 0 | F126: 0 | G126: 0 | H126: 0 | I126: 0 | J126: 0 | K126: 0 | L126: 0 | M126: 0 | N126: 0 | O126: 0 | P126: 0 | Q126: 0
A127: San Luis Canal - Maintenance - Joint | B127: San Luis Unit | D127: 0 | E127: 0 | F127: 0 | G127: 0 | H127: 0 | I127: 0 | J127: 0 | K127: 0 | L127: 0 | M127: 0 | N127: 0 | O127: 0 | P127: 0 | Q127: 0
A128: San Luis Canal - Federal Only | B128: San Luis Unit | D128: 28000 | E128: -28000 | F128: 0 | G128: 0 | H128: 0 | I128: 0 | J128: 0 | K128: 0 | L128: 0 | M128: 0 | N128: 0 | O128: 0 | P128: 0 | Q128: 0
A129: Drainage Projects | B129: San Luis Unit | D129: 2167000 | E129: -1507000 | F129: 660000 | G129: 0 | H129: 660000 | I129: 0 | J129: 0 | K129: 0 | L129: 0 | M129: 0 | N129: 0 | O129: 0 | P129: 0 | Q129: 0
A130: Tehama-Colusa Canal | B130: Sacramento River Division | D130: 50000 | E130: 20000 | F130: 70000 | G130: 1148 | H130: 53011 | I130: 6594 | J130: 0 | K130: 8316 | L130: 0 | M130: 0 | N130: 0 | O130: 931 | P130: 0 | Q130: 0
A131: Shasta Pumping Plant | B131: Shasta Division | D131: 0 | E131: =F131-D131 -> 0 | F131: 0 | G131: 0 | H131: 0 | I131: 0 | J131: 0 | K131: 0 | L131: 0 | M131: 0 | N131: 0 | O131: 0 | P131: 0 | Q131: =F131-SUM(G131:P131) -> 0
A132: Toyon Pipeline | B132: Shasta Division | D132: 0 | E132: 0 | F132: 0 | G132: 0 | H132: 0 | I132: 0 | J132: 0 | K132: 0 | L132: 0 | M132: 0 | N132: 0 | O132: 0 | P132: 0 | Q132: 0
A134: Total Conveyance O&M | D134: 2920000 | E134: =SUM(E103:E132) -> -1457000 | F134: 1463000 | G134: 606630 | H134: 779890 | I134: 23190 | J134: 73 | K134: 29250 | L134: 687 | M134: 0 | N134: 0 | O134: 3280 | P134: 20000 | Q134: =F134-SUM(G134:P134) -> 0
A135: Transfer to Fish and Wildlife O&M | D135: -53267 | E135: =SUM(E104:E133) -> -1457000 | F135: =I135 -> -23190 | I135: =-I134 -> -23190 | Q135: 0
A136: Transfer to Recreation O&M | D136: -1820 | E136: =SUM(E105:E134) -> -2914000 | F136: =J136 -> -73 | J136: =-J134 -> -73 | Q136: 0
A137: Transfer to Power O&M | D137: -24512 | E137: -4339000 | F137: =K137 -> -29250 | K137: =-K134 -> -29250 | Q137: 0
A138: Transfer to Flood Control O&M | D138: -17165 | E138: -7253000 | F138: =L138 -> -687 | L138: =-L134 -> -687 | Q138: 0
A139: Transfer to State of California O&M | D139: -5731 | E139: -11592000 | F139: =O139 -> -3280 | O139: =-O134 -> -3280 | Q139: 0
A140: Transfer to Non-Reimbursable Bureau Prog. | D140: -15000 | E140: -18790000 | F140: =P140 -> -20000 | P140: =-P134 -> -20000 | Q140: 0
A142: Conveyance O&M - M&I and Irrigation | D142: 2802505 | E142: =SUM(E134:E140) -> -47802000 | F142: 1386520 | G142: 606630 | H142: 779890 | I142: 0 | J142: 0 | K142: 0 | L142: 0 | M142: 0 | N142: 0 | O142: 0 | P142: 0 | Q142: =F142-SUM(G142:P142) -> 0
A146: CONVEYANCE PUMPING O&M
A148: Corning Pumping Plant | B148: Sacramento River Division | D148: 0 | E148: =F148-D148 -> 0 | F148: 0 | G148: 0 | H148: =F148-G148-SUM(I148:P148) -> 0 | I148: 0 | J148: 0 | K148: 0 | L148: 0 | M148: 0 | N148: 0 | O148: 0 | P148: 0 | Q148: =F148-SUM(G148:P148) -> 0
A149: Dos Amigos Pumping Plant - Oper. - Joint | B149: San Luis Unit | D149: 0 | E149: 0 | F149: 0 | G149: 0 | H149: 0 | I149: 0 | J149: 0 | K149: 0 | L149: 0 | M149: 0 | N149: 0 | O149: 0 | P149: 0 | Q149: 0
A150: Dos Amigos Pumping Plant - Maint. - Joint | B150: San Luis Unit | D150: 0 | E150: 0 | F150: 0 | G150: 0 | H150: 0 | I150: 0 | J150: 0 | K150: 0 | L150: 0 | M150: 0 | N150: 0 | O150: 0 | P150: 0 | Q150: 0
A151: Dos Amigos Switchyard - Operation - Joint | B151: San Luis Unit | D151: 0 | E151: 0 | F151: 0 | G151: 0 | H151: 0 | I151: 0 | J151: 0 | K151: 0 | L151: 0 | M151: 0 | N151: 0 | O151: 0 | P151: 0 | Q151: 0
A152: Dos Amigos Switchyard - Maintenance - Joint | B152: San Luis Unit | D152: 0 | E152: 0 | F152: 0 | G152: 0 | H152: 0 | I152: 0 | J152: 0 | K152: 0 | L152: 0 | M152: 0 | N152: 0 | O152: 0 | P152: 0 | Q152: 0
A153: Environmental Monitoring | B153: San Luis Unit | D153: 14000 | E153: -14000 | F153: 0 | G153: 0 | H153: 0 | I153: 0 | J153: 0 | K153: 0 | L153: 0 | M153: 0 | N153: 0 | O153: 0 | P153: 0 | Q153: 0
A154: Contra Costa Fish Monitoring (Mitigation) | B154: Delta Division | D154: 0 | E154: 0 | F154: 0 | G154: 0 | H154: 0 | I154: 0 | J154: 0 | K154: 0 | L154: 0 | M154: 0 | N154: 0 | O154: 0 | P154: 0 | Q154: 0
A155: Tracy Pumping Plant Mitigation Program | B155: Delta Division | D155: 0 | E155: 0 | F155: 0 | G155: 0 | H155: 0 | I155: 0 | J155: 0 | K155: 0 | L155: 0 | M155: 0 | N155: 0 | O155: 0 | P155: 0 | Q155: 0
A156: Tracy Pumping Plant | B156: Delta Division | D156: 0 | E156: 0 | F156: 0 | G156: 0 | H156: 0 | I156: 0 | J156: 0 | K156: 0 | L156: 0 | M156: 0 | N156: 0 | O156: 0 | P156: 0 | Q156: 0
A157: Conveyance Pumping O&M | D157: 14000 | E157: =SUM(E148:E156) -> -14000 | F157: 0 | G157: 0 | H157: 0 | I157: 0 | J157: 0 | K157: 0 | L157: 0 | M157: 0 | N157: 0 | O157: 0 | P157: 0 | Q157: 0
A159: Total Conveyance Pumping O&M | D159: 14000 | E159: =E157 -> -14000 | F159: 0 | G159: 0 | H159: 0 | I159: 0 | J159: 0 | K159: 0 | L159: 0 | M159: 0 | N159: 0 | O159: 0 | P159: =P157 -> 0 | Q159: =F159-SUM(G159:P159) -> 0
A160: Transfer to Fish and Wildlife O&M | D160: -1709 | E160: 0 | F160: =I160 -> 0 | I160: =-I159 -> 0 | Q160: =F160-SUM(G160:P160) -> 0
A161: Transfer to Power O&M | D161: -3284 | E161: -14000 | F161: =K161 -> 0 | K161: =-K159 -> 0 | Q161: =F161-SUM(G161:P161) -> 0
A162: Transfer to State of California O&M | D162: -10 | E162: 0 | F162: =O162 -> 0 | O162: =-O159 -> 0 | P162: =-P159 -> 0 | Q162: =F162-SUM(G162:P162) -> 0
A164: Conveyance Pumping O&M - M&I and Irrigation | D164: 8997 | E164: 0 | F164: =SUM(F159:F162) -> 0 | G164: 0 | H164: 0 | I164: 0 | J164: 0 | K164: 0 | L164: 0 | M164: 0 | N164: 0 | O164: 0 | P164: =SUM(P159:P162) -> 0 | Q164: =F164-SUM(G164:P164) -> 0
A168: Table 6. Allocated Operation and Maintenance Costs, Fiscal Year 2023 | P168: Sheet 3 of 11
A169: Central Valley Project
A170: California
P172: Non-
D173: Budget Year | E173: =E$16 -> Increase | F173: =F$16 -> Budget Year | I173: =I$16 -> Fish and | L173: =L$16 -> Flood | N173: =N$16 -> Water Quality | O173: =O$16 -> State of | P173: Reimbursable
A174: Component and Feature | B174: =B$17 -> Division or Unit | D174: 2021 | E174: =E$17 -> (Decrease) | F174: 2023 | G174: M&I Water | H174: Irrigation | I174: Wildlife | J174: Recreation | K174: Power | L174: Control | M174: Navigation | N174: Improvement | O174: California | P174: Program
A176: WATER MARKETING
A178: Water Marketing and Contract Administration | B178: American River Division | D178: 391000 | E178: =F178-D178 -> 69000 | F178: 460000 | G178: 62008 | H178: =F178-G178-SUM(I178:P178) -> 397992 | I178: 0 | J178: 0 | K178: 0 | L178: 0 | M178: 0 | N178: 0 | O178: 0 | P178: 0 | Q178: =F178-SUM(G178:P178) -> 0
A179: Water Marketing and Contract Administration | B179: Misc. Project Programs | D179: 4840000 | E179: -221000 | F179: 4619000 | G179: 622641 | H179: 3996359 | I179: 0 | J179: 0 | K179: 0 | L179: 0 | M179: 0 | N179: 0 | O179: 0 | P179: 0 | Q179: 0
A180: Water Marketing and Contract Administration | B180: Delta Division | D180: 419000 | E180: 50000 | F180: 469000 | G180: 63221 | H180: 405779 | I180: 0 | J180: 0 | K180: 0 | L180: 0 | M180: 0 | N180: 0 | O180: 0 | P180: 0 | Q180: 0
A181: Water Marketing and Contract Administration | B181: East Side Division | D181: 89000 | E181: 46000 | F181: 135000 | G181: 18198 | H181: 116802 | I181: 0 | J181: 0 | K181: 0 | L181: 0 | M181: 0 | N181: 0 | O181: 0 | P181: 0 | Q181: 0
A182: Water Marketing and Contract Administration | B182: Friant Division | D182: 447000 | E182: -13000 | F182: 434000 | G182: 58503 | H182: 375497 | I182: 0 | J182: 0 | K182: 0 | L182: 0 | M182: 0 | N182: 0 | O182: 0 | P182: 0 | Q182: 0
A183: Water Marketing and Contract Administration | B183: San Luis Unit | D183: 232000 | E183: 64000 | F183: 296000 | G183: 39901 | H183: 256099 | I183: 0 | J183: 0 | K183: 0 | L183: 0 | M183: 0 | N183: 0 | O183: 0 | P183: 0 | Q183: 0
A184: Water Marketing and Contract Administration | B184: San Felipe Unit | D184: 0 | E184: 32000 | F184: 32000 | G184: 4314 | H184: 27686 | I184: 0 | J184: 0 | K184: 0 | L184: 0 | M184: 0 | N184: 0 | O184: 0 | P184: 0 | Q184: 0
A185: Water Marketing and Contract Administration | B185: Shasta Division | D185: 0 | E185: 118000 | F185: 118000 | G185: 15906 | H185: 102094 | I185: 0 | J185: 0 | K185: 0 | L185: 0 | M185: 0 | N185: 0 | O185: 0 | P185: 0 | Q185: 0
A186: Water Marketing and Contract Administation | D186: 6418000 | E186: =SUM(E178:E185) -> 145000 | F186: =SUM(F178:F185) -> 6563000 | G186: =SUM(G178:G185) -> 884692 | H186: =SUM(H178:H185) -> 5678308 | I186: =SUM(I178:I185) -> 0 | J186: 0 | K186: 0 | L186: 0 | M186: 0 | N186: 0 | O186: 0 | P186: 0 | Q186: 0
Q187: 0
A188: Water Service Contract Renewals | B188: American River Division | D188: 0 | E188: =F188-D188 -> 0 | F188: 0 | G188: 0 | H188: =F188-G188-SUM(I188:P188) -> 0 | I188: 0 | J188: 0 | K188: 0 | L188: 0 | M188: 0 | N188: 0 | O188: 0 | P188: 0 | Q188: 0
A189: Water Service Contract Renewals | B189: Delta Division | D189: 26000 | E189: -21000 | F189: 5000 | G189: 674 | H189: 4326 | I189: 0 | J189: 0 | K189: 0 | L189: 0 | M189: 0 | N189: 0 | O189: 0 | P189: 0 | Q189: 0
A190: Water Service Contract Renewals | B190: Friant Division | D190: 0 | E190: 0 | F190: 0 | G190: 0 | H190: 0 | I190: 0 | J190: 0 | K190: 0 | L190: 0 | M190: 0 | N190: 0 | O190: 0 | P190: 0 | Q190: 0
A191: Water Service Contract Renewals | B191: Misc. Project Programs | D191: 0 | E191: 0 | F191: 0 | G191: 0 | H191: 0 | I191: 0 | J191: 0 | K191: 0 | L191: 0 | M191: 0 | N191: 0 | O191: 0 | P191: 0 | Q191: 0
A192: Water Service Contract Renewals | B192: Sacramento River Division | D192: 472000 | E192: 246000 | F192: 718000 | G192: 96786 | H192: 621214 | I192: 0 | J192: 0 | K192: 0 | L192: 0 | M192: 0 | N192: 0 | O192: 0 | P192: 0 | Q192: 0
A193: Water Service Contract Renewals | B193: San Luis Unit | D193: 0 | E193: 0 | F193: 0 | G193: 0 | H193: 0 | I193: 0 | J193: 0 | K193: 0 | L193: 0 | M193: 0 | N193: 0 | O193: 0 | P193: 0 | Q193: 0
A194: Water Service Contract Renewals | B194: Shasta Division | D194: 166000 | E194: -166000 | F194: 0 | G194: 0 | H194: 0 | I194: 0 | J194: 0 | K194: 0 | L194: 0 | M194: 0 | N194: 0 | O194: 0 | P194: 0 | Q194: 0
A195: Water Service Contract Renewals | D195: 664000 | E195: =SUM(E188:E194) -> 59000 | F195: =SUM(F188:F194) -> 723000 | G195: =SUM(G188:G194) -> 97460 | H195: =SUM(H188:H194) -> 625540 | I195: =SUM(I188:I194) -> 0 | J195: 0 | K195: 0 | L195: 0 | M195: 0 | N195: 0 | O195: 0 | P195: 0 | Q195: 0
A197: Water Contract Administration | D197: 7082000 | E197: =E186+E195 -> 204000 | F197: =F186+F195 -> 7286000 | G197: =G186+G195 -> 982152 | H197: =H186+H195 -> 6303848 | I197: =I186+I195 -> 0 | J197: 0 | K197: 0 | L197: 0 | M197: 0 | N197: 0 | O197: 0 | P197: 0 | Q197: =F197-SUM(G197:P197) -> 0
A200: Centralized Water and Power System Control | B200: Water and Power Operations | D200: 403000 | E200: =F200-D200 -> 3103000 | F200: 3506000 | G200: 221229 | H200: =F200-G200-SUM(I200:P200) -> 1613462 | I200: 29450 | J200: 13673 | K200: 895432 | L200: 576737 | M200: 0 | N200: 155666 | O200: 351 | P200: 0 | Q200: =F200-SUM(G200:P200) -> 0
A201: CVP Water Wheeling | B201: Water and Power Operations | D201: 2979000 | E201: -1479000 | F201: 1500000 | G201: 185100 | H201: =F201-G201-SUM(I201:P201) -> 1195800 | I201: 49500 | J201: 0 | K201: 62550 | L201: 0 | M201: 0 | N201: 0 | O201: 7050 | P201: 0 | Q201: 0
A202: Science Technology | B202: Sacramento River Division | D202: 0 | E202: 0 | F202: 0 | G202: 0 | H202: 0 | I202: 0 | J202: 0 | K202: 0 | L202: 0 | M202: 0 | N202: 0 | O202: 0 | P202: 0 | Q202: 0
A203: Research and Technology | B203: Trinity Division | D203: 0 | E203: 0 | F203: 0 | G203: 0 | H203: 0 | I203: 0 | J203: 0 | K203: 0 | L203: 0 | M203: 0 | N203: 0 | O203: 0 | P203: 0 | Q203: 0
A204: Research and Technology | B204: Shasta Division | D204: 0 | E204: 0 | F204: 0 | G204: 0 | H204: 0 | I204: 0 | J204: 0 | K204: 0 | L204: 0 | M204: 0 | N204: 0 | O204: 0 | P204: 0 | Q204: 0
A205: Power Operations and Systems Management | B205: Water and Power Operations | D205: 3375000 | E205: -151000 | F205: 3224000 | G205: 0 | H205: 0 | I205: 0 | J205: 0 | K205: 3224000 | L205: 0 | M205: 0 | N205: 0 | O205: 0 | P205: 0 | Q205: 0
A206: Power Operations - Customer Funds | B206: Water and Power Operations | D206: 0 | E206: 0 | F206: 0 | G206: 0 | H206: 0 | I206: 0 | J206: 0 | K206: 0 | L206: 0 | M206: 0 | N206: 0 | O206: 0 | P206: 0 | Q206: 0
A207: CVP Radio Network | B207: Water and Power Operations | D207: 450000 | E207: 150000 | F207: 600000 | G207: 37860 | H207: 276120 | I207: 5040 | J207: 2340 | K207: 153240 | L207: 98700 | M207: 0 | N207: 26640 | O207: 60 | P207: 0 | Q207: 0
A208: CVP Operating Criteria and Plans (OCAP) | B208: Water and Power Operations | D208: 3232000 | E208: -3232000 | F208: 0 | G208: 0 | H208: 0 | I208: 0 | J208: 0 | K208: 0 | L208: 0 | M208: 0 | N208: 0 | O208: 0 | P208: 0 | Q208: 0
A209: Fish & Wildlife Coordination Act | B209: Misc. Project Program | D209: 68000 | E209: -68000 | F209: 0 | G209: 0 | H209: =F209-G209-SUM(I209:P209) -> 0 | I209: 0 | J209: 0 | K209: 0 | L209: 0 | M209: 0 | N209: 0 | O209: 0 | P209: 0 | Q209: 0
A210: San Joaquin River Restoration Program | B210: Friant Division | D210: 34000000 | E210: -13500000 | F210: 20500000 | G210: 0 | H210: =F210-G210-SUM(I210:P210) -> 0 | I210: 0 | J210: 0 | K210: 0 | L210: 0 | M210: 0 | N210: 0 | O210: 0 | P210: 20500000 | Q210: 0
A211: Hydromet System | B211: Water and Power Operations | D211: 460000 | E211: 0 | F211: 460000 | G211: 29026 | H211: 211692 | I211: 3864 | J211: 1794 | K211: 117484 | L211: 75670 | M211: 0 | N211: 20424 | O211: 46 | P211: 0 | Q211: 0
A212: Power Resource Management & Administration | B212: Water and Power Operations | D212: 0 | E212: 0 | F212: 0 | G212: 0 | H212: 0 | I212: 0 | J212: 0 | K212: 0 | L212: 0 | M212: 0 | N212: 0 | O212: 0 | P212: 0 | Q212: 0
A213: System Control and Load Dispatching | B213: Water and Power Operations | D213: 1345000 | E213: -1345000 | F213: 0 | G213: 0 | H213: 0 | I213: 0 | J213: 0 | K213: 0 | L213: 0 | M213: 0 | N213: 0 | O213: 0 | P213: 0 | Q213: 0
A214: Other Consolidated Expenditures and Credits | B214: Water and Power Operations | D214: 0 | E214: =F214-D214 -> 0 | F214: 0 | G214: 0 | H214: 0 | I214: 0 | J214: 0 | K214: 0 | L214: 0 | M214: 0 | N214: 0 | O214: 0 | P214: 0 | Q214: 0
A215: Prospect Island - Water Operations | B215: Delta Division | D215: 0 | E215: 0 | F215: 0 | G215: 0 | H215: 0 | I215: 0 | J215: 0 | K215: 0 | L215: 0 | M215: 0 | N215: 0 | O215: 0 | P215: 0 | Q215: 0
A216: Model Maintenance/Evaluation | B216: Misc. Project Programs | D216: 485000 | E216: 100000 | F216: 585000 | G216: 36914 | H216: 269215 | I216: 4914 | J216: 2282 | K216: 149409 | L216: 96233 | M216: 0 | N216: 25974 | O216: 59 | P216: 0 | Q216: 0
A217: CVP/SWP Model/Data Development | B217: Misc. Project Programs | D217: 235000 | E217: -100000 | F217: 135000 | G217: 8519 | H217: 62125 | I217: 1134 | J217: 527 | K217: 34479 | L217: 22208 | M217: 0 | N217: 5994 | O217: 14 | P217: 0 | Q217: 0
A218: Hydrologic Operations Model | B218: Delta Division | D218: 0 | E218: 0 | F218: 0 | G218: 0 | H218: 0 | I218: 0 | J218: 0 | K218: 0 | L218: 0 | M218: 0 | N218: 0 | O218: 0 | P218: 0 | Q218: 0
A219: Technical Review and Guidance | B219: Misc. Project Programs | D219: 200000 | E219: -29000 | F219: 171000 | G219: 10790 | H219: 78695 | I219: 1436 | J219: 667 | K219: 43673 | L219: 28130 | M219: 0 | N219: 7592 | O219: 17 | P219: 0 | Q219: 0
A220: Integrated Pest Management | B220: Misc. Project Programs | D220: 37000 | E220: 0 | F220: 37000 | G220: 2335 | H220: 17026 | I220: 311 | J220: 144 | K220: 9450 | L220: 6087 | M220: 0 | N220: 1643 | O220: 4 | P220: 0 | Q220: 0
A221: CVP RPA Implementation (Mitigation) | B221: Misc. Project Programs | D221: 16000 | E221: -16000 | F221: 0 | G221: 0 | H221: 0 | I221: 0 | J221: 0 | K221: 0 | L221: 0 | M221: 0 | N221: 0 | O221: 0 | P221: 0 | Q221: 0
A222: Drought Transfer Program & Contingency | B222: Misc. Project Programs | D222: 35000 | E222: 5096000 | F222: 5131000 | G222: 633165 | H222: 4090433 | I222: 169323 | J222: 0 | K222: 213963 | L222: 0 | M222: 0 | N222: 0 | O222: 24116 | P222: 0 | Q222: 0
A223: Real-Time Water Operations (Mitigation) | B223: Misc. Project Programs | D223: 0 | E223: 0 | F223: 0 | G223: 0 | H223: 0 | I223: 0 | J223: 0 | K223: 0 | L223: 0 | M223: 0 | N223: 0 | O223: 0 | P223: 0 | Q223: 0
A224: Real-Time Water Operations (Mitigation) | B224: Environmental Compliance | D224: 6185000 | E224: =F224-D224 -> 5545000 | F224: 11730000 | G224: 702627 | H224: =F224-G224-SUM(I224:P224) -> 3589380 | I224: 83283 | J224: 0 | K224: 1239861 | L224: 4767072 | M224: 0 | N224: 1347777 | O224: 0 | P224: 0 | Q224: =F224-SUM(G224:P224) -> 0
A225: Intervention (Mitigation) | B225: Environmental Compliance | D225: 0 | E225: =F225-D225 -> 1000000 | F225: 1000000 | G225: 59900 | H225: 306000 | I225: 7100 | J225: 0 | K225: 105700 | L225: 406400 | M225: 0 | N225: 114900 | O225: 0 | P225: 0 | Q225: =F225-SUM(G225:P225) -> 0
A226: Water Operations | B226: Water and Power Operations | D226: 1632000 | E226: 5963000 | F226: 7595000 | G226: 937223 | H226: =F226-G226-SUM(I226:P226) -> 6054733 | I226: 250635 | J226: 0 | K226: 316712 | L226: 0 | M226: 0 | N226: 0 | O226: 35697 | P226: 0 | Q226: 0
A228: Water and Power Systems Controls | D228: 48952000 | E228: =SUM(E200:E226) -> 1037000 | F228: 56174000 | G228: 2864688 | H228: 17764681 | I228: 605990 | J228: 21427 | K228: 6565953 | L228: 6077237 | M228: 0 | N228: 1706610 | O228: 67414 | P228: 20500000 | Q228: =F228-SUM(G228:P228) -> 0
A232: Table 6. Allocated Operation and Maintenance Costs, Fiscal Year 2023 | P232: Sheet 4 of 11
A233: Central Valley Project
A234: California
P236: Non-
D237: Budget Year | E237: =E$16 -> Increase | F237: =F$16 -> Budget Year | I237: =I$16 -> Fish and | L237: =L$16 -> Flood | N237: =N$16 -> Water Quality | O237: =O$16 -> State of | P237: Reimbursable
A238: Component and Feature | B238: =B$17 -> Division or Unit | D238: 2021 | E238: =E$17 -> (Decrease) | F238: 2023 | G238: M&I Water | H238: Irrigation | I238: Wildlife | J238: Recreation | K238: Power | L238: Control | M238: Navigation | N238: Improvement | O238: California | P238: Program
A240: WATER MARKETING (continued)
A242: 3405(a) Water Transfers | B242: Central Valley Project Improv. | C242: 1/ | D242: 0 | E242: =F242-D242 -> 0 | F242: 0 | G242: 0 | H242: =F242-G242-SUM(I242:P242) -> 0 | I242: 0 | J242: 0 | K242: 0 | L242: 0 | M242: 0 | N242: 0 | O242: 0 | P242: 0 | Q242: =F242-SUM(G242:P242) -> 0
A243: 3405(a) Water Rights | B243: Central Valley Project Improv. | C243: 1/ | D243: 0 | E243: 0 | F243: 0 | G243: 0 | H243: =F243-G243-SUM(I243:P243) -> 0 | I243: 0 | J243: 0 | K243: 0 | L243: 0 | M243: 0 | N243: 0 | O243: 0 | P243: 0 | Q243: 0
A244: 3405(e) Irrigation Training and Research Center | B244: Central Valley Project Improv. | C244: 1/ | D244: 0 | E244: 0 | F244: 0 | G244: 0 | H244: 0 | I244: 0 | J244: 0 | K244: 0 | L244: 0 | M244: 0 | N244: 0 | O244: 0 | P244: 0 | Q244: 0
A245: 3406(b,c) Water Contracts | B245: Central Valley Project Improv. | C245: 1/ | D245: 0 | E245: 0 | F245: 0 | G245: 0 | H245: 0 | I245: 0 | J245: 0 | K245: 0 | L245: 0 | M245: 0 | N245: 0 | O245: 0 | P245: 0 | Q245: 0
A246: 3406(b,c) Project Benefits | B246: Central Valley Project Improv. | C246: 1/ | D246: 0 | E246: 0 | F246: 0 | G246: 0 | H246: 0 | I246: 0 | J246: 0 | K246: 0 | L246: 0 | M246: 0 | N246: 0 | O246: 0 | P246: 0 | Q246: 0
A247: 3406(b)(3) Water Acquisition | B247: Central Valley Project Improv. | C247: 3/ | D247: 0 | E247: 0 | F247: 0 | G247: 0 | H247: 0 | I247: 0 | J247: 0 | K247: 0 | L247: 0 | M247: 0 | N247: 0 | O247: 0 | P247: 0 | Q247: 0
A248: 3406(b)(7) Flow Standards and Objectives | B248: Central Valley Project Improv. | C248: 3/ | D248: 0 | E248: 0 | F248: 0 | G248: 0 | H248: 0 | I248: 0 | J248: 0 | K248: 0 | L248: 0 | M248: 0 | N248: 0 | O248: 0 | P248: 0 | Q248: 0
... 367 more rows
